bitfinex-derivatives/quotes_BNBF0:USTF0_20250126
["timestamp","ask_amount","ask_price","bid_price","bid_amount"]
[1737932603691,0.2983071,670.45,669.34,0.27419206]
[1737932603893,0.2983071,670.45,669.35,0.27419206]
[1737932604093,0.2983071,670.45,669.36,0.27419206]
[1737932604292,0.2983071,670.45,669.37,0.27419206]
[1737932604491,0.2983071,670.45,669.15,0.27419206]
[1737932604687,0.2983071,670.45,669.16,0.57307424]
[1737932604887,0.2983071,670.45,669.17,0.27419206]
[1737932605095,0.2983071,670.45,669.18,0.27419206]
[1737932605397,0.2983071,670.45,669.19,0.57306084]
[1737932605697,0.2983071,670.45,669.2,0.57305637]
[1737932605898,0.2983071,670.45,669.21,0.5730519]
[1737932606093,0.2983071,670.45,669.22,0.57304744]
[1737932606300,1.08678414,670.87,669.23,0.57304297]
[1737932606493,0.29812479,670.86,669.24,0.27419206]
[1737932606696,2.40930628,670.85,669.26,0.29883752]
[1737932606896,0.29813368,670.84,669.27,0.27419206]
[1737932607099,0.29813368,670.84,669.28,0.27419206]
[1737932607297,0.29813368,670.84,669.29,0.27419206]
[1737932607494,2.40930628,670.83,669.3,0.27419206]
[1737932607797,2.40930628,670.82,669.31,0.27419206]
[1737932607994,2.40930628,670.82,669.32,0.27419206]
[1737932608200,0.29813368,670.84,669.33,0.27419206]
[1737932608501,2.40906138,670.81,669.34,0.27419206]
[1737932608695,2.40906138,670.81,669.35,0.27419206]
[1737932608897,2.40906138,670.81,669.36,0.27419206]
[1737932609096,0.92656207,670.8,669.37,0.27419206]
[1737932609397,0.92656207,670.8,669.38,0.27419206]
[1737932609597,2.40906138,670.79,669.39,1.38593634]
[1737932609800,2.40906138,670.79,669.4,0.27419206]
[1737932610001,2.40906138,670.79,669.41,0.57296261]
[1737932610304,2.40906138,670.78,669.42,0.57295815]
[1737932610501,2.40906138,670.78,669.43,0.57295369]
[1737932610694,2.40906138,670.77,669.44,0.57294923]
[1737932610898,2.40906138,670.77,669.45,0.27419206]
[1737932611098,2.40906138,670.76,669.46,0.27419206]
[1737932611297,2.40906138,670.76,669.47,0.27419206]
[1737932611499,2.40906138,670.76,669.48,0.27419206]
[1737932611698,0.92656207,670.75,669.49,0.27419206]
[1737932611900,0.29817813,670.74,669.5,0.27419206]
[1737932612101,0.29817813,670.74,669.45,0.27419206]
[1737932612403,2.40867991,670.73,669.46,0.27419206]
[1737932612804,2.40867991,670.73,669.47,0.27419206]
[1737932612998,2.40867991,670.73,669.48,0.27419206]
[1737932613198,2.40867991,670.73,669.49,0.27419206]
[1737932613400,2.40867991,670.72,669.5,0.27419206]
[1737932613598,2.40867991,670.72,669.51,0.27419206]
[1737932613899,0.92656207,670.71,669.52,0.27419206]
[1737932614104,0.92656207,670.71,669.53,0.27419206]
[1737932614300,0.92656207,670.7,669.54,0.27419206]
[1737932614506,0.92656207,670.7,669.55,0.27419206]
[1737932614706,0.92656207,670.73,669.56,0.27419206]
[1737932614905,0.92656207,670.73,669.57,0.27419206]
[1737932615206,0.92656207,670.73,669.58,0.27419206]
[1737932615406,0.92656207,670.72,669.58,0.27419206]
[1737932616004,0.92656207,670.71,669.58,0.27419206]
[1737932616707,0.92656207,670.7,669.58,0.27419206]
[1737932617601,0.92656207,670.69,669.58,0.27419206]
[1737932618003,0.92656207,670.73,669.58,0.27419206]
[1737932618605,0.92656207,670.72,669.58,0.27419206]
[1737932619402,0.92656207,670.72,669.57,0.29869916]
[1737932619403,0.92656207,670.73,669.57,0.29869916]
[1737932619608,0.92656207,670.73,669.58,0.27399836]
[1737932619803,0.92656207,670.73,669.59,0.27399836]
[1737932620003,0.92656207,670.73,669.6,1.00167438]
[1737932620203,0.29817813,670.74,669.61,1.00167438]
[1737932620405,0.29817813,670.74,669.62,1.00167438]
[1737932620603,0.29817813,670.74,669.63,1.00167438]
[1737932620804,0.29817813,670.74,669.64,0.27399836]
[1737932621003,0.29817813,670.74,669.65,0.27399836]
[1737932621208,0.29817813,670.74,669.66,0.57265738]
[1737932621409,2.78277456,672.03,669.03,1.11174428]
[1737932621410,1.08678414,671.81,669.67,0.57265292]
[1737932621612,0.29774753,671.71,669.68,0.27399836]
[1737932621913,0.29774753,671.71,669.69,0.27399836]
[1737932622112,0.29774753,671.71,669.7,0.27399836]
[1737932622305,2.40972803,671.7,669.71,0.27399836]
[1737932622511,2.40972803,671.7,669.72,0.27399836]
[1737932622708,2.40972803,671.7,669.73,0.57262616]
[1737932622911,2.40972803,671.69,669.73,0.2986278]
[1737932623110,2.40972803,671.69,669.74,0.27390984]
[1737932623308,2.40972803,671.69,669.75,0.27390984]
[1737932623514,2.40972803,671.68,669.76,0.27390984]
[1737932623811,2.40972803,671.68,669.77,0.27390984]
[1737932624213,2.40972803,671.68,669.73,0.2986278]
[1737932624214,0.2977697,671.66,669.78,0.27390984]
[1737932624409,2.40972803,671.65,669.79,0.27390984]
[1737932624807,0.2977697,671.66,669.73,0.2986278]
[1737932624808,2.40972803,671.64,669.8,0.27390984]
[1737932625013,2.40972803,671.64,669.81,0.27391161]
[1737932625211,2.40972803,671.64,669.82,0.27391161]
[1737932625412,2.40972803,671.63,669.83,0.27391161]
[1737932625815,2.40972803,671.63,669.73,0.2986278]
[1737932626110,2.40972803,671.62,669.74,0.27391201]
[1737932626310,2.40972803,671.62,669.75,0.57253089]
[1737932626514,2.40972803,671.62,669.76,0.27391201]
[1737932626712,2.40972803,671.61,669.77,0.27391201]
[1737932626912,2.40972803,671.6,669.78,0.27391201]
[1737932627113,2.40972803,671.6,669.79,0.27391201]
[1737932627310,0.29780517,671.58,669.8,0.27391201]
[1737932627616,0.29780517,671.58,669.81,0.27391201]
[1737932627819,2.40972803,671.57,669.82,0.27391201]
[1737932628115,0.29781847,671.55,669.83,0.27391201]
[1737932628316,0.29781847,671.55,669.76,0.27391201]
[1737932628518,2.40972803,671.54,669.75,0.29861888]
[1737932628718,0.29783178,671.52,669.76,0.27393122]
[1737932629615,2.40972803,671.51,669.76,0.27393122]
[1737932629815,0.29784509,671.49,669.76,0.27393122]
[1737932630816,2.40972803,671.48,669.77,0.27393122]
[1737932631017,0.29785839,671.46,669.78,0.27393122]
[1737932631217,0.29785839,671.46,669.79,0.27393122]
[1737932631414,0.29785839,671.46,669.8,0.27393122]
[1737932631613,0.29785839,671.46,669.81,0.27393122]
[1737932631814,2.40972803,671.45,669.82,0.27393122]
[1737932632016,0.2978717,671.43,669.83,0.27393122]
[1737932632319,2.40972803,671.42,669.76,0.27393122]
[1737932632517,2.40972803,671.42,669.77,0.27391351]
[1737932632820,0.29788501,671.4,669.78,0.27391351]
[1737932633023,2.40972803,671.39,669.79,0.27391351]
[1737932633221,0.29789832,671.37,669.8,0.27391351]
[1737932633422,0.29789832,671.37,669.81,0.27391351]
[1737932633621,0.29789832,671.37,669.82,0.27391351]
[1737932633822,2.40972803,671.36,669.76,0.27391351]
[1737932634026,0.29791163,671.34,669.77,0.27391351]
[1737932634324,0.29791163,671.34,669.78,0.27390888]
[1737932634522,0.29791163,671.34,669.76,0.27390888]
[1737932634717,2.40972803,671.33,669.77,0.27390888]
[1737932634917,2.40972803,671.33,669.78,0.27390888]
[1737932635220,2.40972803,671.33,669.79,0.27390888]
[1737932635419,2.40972803,671.32,669.76,0.27390888]
[1737932635723,0.29792495,671.31,669.77,0.27390888]
[1737932635919,2.40972803,671.3,669.78,0.27390888]
[1737932636227,0.29793382,671.29,669.79,0.27390888]
[1737932636418,0.29793382,671.29,669.8,0.27390888]
[1737932636621,0.29793382,671.29,669.81,0.27390888]
[1737932636823,2.40972803,671.28,669.82,0.27390888]
[1737932637023,0.29794714,671.26,669.83,0.27390888]
[1737932637325,0.29794714,671.26,669.84,0.27390888]
[1737932637625,0.29794714,671.26,669.85,0.27390888]
[1737932637826,2.40972803,671.25,669.86,0.27390888]
[1737932638028,0.29796046,671.23,669.87,0.27390888]
[1737932638227,0.29796046,671.23,669.88,0.27390888]
[1737932638420,0.29796046,671.23,669.76,0.29861442]
[1737932638421,2.40972803,671.22,669.89,0.27390888]
[1737932638620,0.29797377,671.2,669.77,0.27390888]
[1737932638826,0.92681847,671.19,669.78,0.27390888]
[1737932639023,0.29798709,671.17,669.79,0.27390888]
[1737932639221,0.29798709,671.17,669.8,0.27390888]
[1737932639424,0.29798709,671.17,669.81,0.27390888]
[1737932639626,0.29798709,671.17,669.82,0.27390888]
[1737932639930,2.40972803,671.16,669.83,0.27398677]
[1737932640125,0.29800041,671.14,669.84,0.27398677]
[1737932640323,0.29800041,671.14,669.77,0.27398677]
[1737932640524,0.29800041,671.14,669.78,0.27398677]
[1737932640723,0.29800041,671.14,669.77,0.27398677]
[1737932640923,2.40972803,671.13,669.77,0.27398677]
[1737932641122,0.29801373,671.11,669.77,0.27398677]
[1737932641327,0.29801373,671.11,669.32,0.27398677]
[1737932641527,2.40972803,671.1,669.33,0.57279303]
[1737932641731,0.29802706,671.08,669.34,0.57278857]
[1737932641929,0.29802706,671.08,669.35,0.57278411]
[1737932642128,2.40972803,671.07,669.36,0.27398677]
[1737932642330,2.40972803,671.07,669.35,0.29879734]
[1737932642331,2.40972803,671.07,669.37,0.57277518]
[1737932642529,2.40972803,671.07,669.38,0.27398677]
[1737932642732,2.40972803,671.06,669.39,0.27398677]
[1737932642933,2.40972803,671.06,669.4,0.27398677]
[1737932643126,2.40972803,671.05,669.41,0.27398677]
[1737932643329,0.29804926,671.03,669.42,0.27398677]
[1737932643530,0.29804926,671.03,669.43,0.5727484]
[1737932643726,2.40972803,671.02,669.44,0.27398677]
[1737932643929,2.40972803,671.02,669.45,0.27398677]
[1737932644228,2.40972803,671.02,669.46,0.27398677]
[1737932644428,2.40972803,671.01,669.47,0.27398677]
[1737932644630,2.40972803,671.01,669.48,0.27398677]
[1737932644824,2.40972803,671.01,669.43,0.29876163]
[1737932644825,0.29806703,670.99,669.49,0.27398677]
[1737932645133,0.29806703,670.99,669.5,0.27398677]
[1737932645332,2.40972803,670.98,669.51,0.27398677]
[1737932645532,2.40972803,670.98,669.52,0.27398677]
[1737932645731,2.40972803,670.98,669.53,0.27398677]
[1737932645928,2.40972803,670.98,669.44,0.27398677]
[1737932646133,2.40972803,670.98,669.45,0.27398677]
[1737932646337,2.40972803,670.97,669.44,0.27398677]
[1737932646534,2.40972803,670.97,669.46,0.27398677]
[1737932646733,2.40972803,670.97,669.44,0.27398677]
[1737932646929,2.40972803,670.96,669.45,0.27398677]
[1737932647128,2.40972803,670.96,669.44,0.27398677]
[1737932647434,2.40972803,670.96,669.45,0.27398677]
[1737932647630,2.40972803,670.95,669.19,0.27398677]
[1737932647831,2.40972803,670.95,669.2,0.27398677]
[1737932648031,2.40972803,670.94,669.21,0.27398677]
[1737932648234,2.40972803,670.94,669.22,0.27398677]
[1737932648526,2.40972803,670.94,669.23,0.27416621]
[1737932648729,2.40972803,670.94,669.24,0.27416621]
[1737932648931,2.40972803,670.93,669.25,0.27416621]
[1737932649128,2.40972803,670.93,669.26,0.27416621]
[1737932649433,2.40972803,670.92,669.27,0.27416621]
[1737932649636,2.40972803,670.92,669.19,0.27416621]
[1737932649934,2.40972803,670.92,669.18,1.11174428]
[1737932649935,1.55844737,670.91,669.18,1.11174428]
[1737932650135,1.55844737,670.91,661.25,5.29961963]
[1737932650136,3.9681754,670.91,668.77,1.11174428]
[1737932650332,3.9681754,670.91,668.78,0.299052]
[1737932650532,2.40972803,670.9,668.78,0.299052]
[1737932650732,2.40972803,670.9,668.79,0.27424091]
[1737932651034,2.40972803,670.89,668.79,0.27424091]
[1737932651335,2.40972803,670.89,668.8,0.27424091]
[1737932651629,2.40972803,670.89,668.81,0.27424076]
[1737932651833,2.40972803,670.89,668.82,0.27424076]
[1737932652027,2.40972803,670.88,668.83,0.27424076]
[1737932652233,2.40972803,670.88,668.84,0.27424076]
[1737932652534,2.40972803,670.88,668.85,0.27424076]
[1737932652732,2.40972803,670.88,668.78,0.299052]
[1737932652733,2.40972803,670.87,668.86,0.27424076]
[1737932652929,2.40972803,670.87,668.87,0.27424076]
[1737932653130,2.40972803,670.87,668.88,0.27424076]
[1737932653326,2.40972803,670.86,668.89,0.27424076]
[1737932653527,2.40972803,670.86,668.9,0.27424076]
[1737932653735,2.40972803,670.86,668.91,0.27424076]
[1737932653934,2.40972803,670.85,668.92,0.27424076]
[1737932654135,2.40972803,670.85,668.93,0.27424076]
[1737932654434,2.40972803,670.85,668.94,0.27424076]
[1737932654632,2.40972803,670.85,668.95,0.27424076]
[1737932654934,2.40972803,670.84,668.96,0.27424076]
[1737932655233,2.40972803,670.84,668.97,0.27424076]
[1737932655434,2.40972803,670.83,668.79,0.27424076]
[1737932655636,2.40972803,670.83,668.8,0.27424076]
[1737932655837,2.40972803,670.83,668.79,0.27424076]
[1737932656038,0.29818257,670.73,668.8,0.57328382]
[1737932656538,2.40972803,670.72,668.81,0.27424076]
[1737932656736,2.40972803,670.72,668.8,0.29904306]
[1737932656737,2.40972803,670.72,668.82,0.27424076]
[1737932656938,2.40972803,670.72,668.83,0.27424076]
[1737932657234,2.40972803,670.71,668.84,0.27424076]
[1737932657435,2.40972803,670.71,668.85,0.27424076]
[1737932657635,2.40972803,670.71,668.86,0.27424076]
[1737932657839,2.40972803,670.71,668.87,0.27424076]
[1737932658038,2.40972803,670.7,668.88,0.27424076]
[1737932658238,2.40972803,670.7,668.89,0.27420382]
[1737932658438,2.40972803,670.7,668.9,0.27420382]
[1737932658639,2.40972803,670.69,668.91,0.27420382]
[1737932658840,2.40972803,670.69,668.92,0.27420382]
[1737932659033,2.40972803,670.69,668.8,0.29904306]
[1737932659034,2.40972803,670.68,668.93,0.27420382]
[1737932659234,2.40972803,670.68,668.94,0.27420382]
[1737932659436,0.29821369,670.66,668.95,0.57317982]
[1737932659636,0.29821369,670.66,668.96,0.57317535]
[1737932659637,2.40972803,670.65,668.96,0.57317535]
[1737932659836,2.40972803,670.65,668.97,0.27420382]
[1737932660039,2.40972803,670.65,668.98,0.27420382]
[1737932660239,0.29821369,670.66,668.96,0.29897153]
[1737932660240,2.40972803,670.64,668.99,0.27420382]
[1737932660438,2.40972803,670.64,669.0,0.27420382]
[1737932660639,2.40972803,670.63,669.01,0.27420382]
[1737932660835,2.40972803,670.63,669.02,0.27420382]
[1737932661041,2.40972803,670.63,669.03,0.27420382]
[1737932661239,2.40972803,670.62,669.04,0.27420382]
[1737932661434,2.40972803,670.62,669.05,0.27420382]
[1737932661839,2.40972803,670.62,669.06,0.27420382]
[1737932662140,2.40972803,670.61,669.07,0.27420382]
[1737932662341,2.40972803,670.61,669.08,0.57312173]
[1737932662538,2.40972803,670.61,669.09,0.57311726]
[1737932662740,2.40972803,670.61,669.1,0.27420382]
[1737932662939,2.40972803,670.6,669.11,0.27420382]
[1737932663137,2.40972803,670.6,669.12,0.27420382]
[1737932663338,2.40972803,670.6,669.13,0.27420382]
[1737932663534,2.40972803,670.59,669.14,0.27420382]
[1737932663740,2.40972803,670.59,669.15,0.27420382]
[1737932663938,2.40972803,670.59,669.09,0.29891344]
[1737932663939,2.40972803,670.59,669.16,0.27420382]
[1737932664141,2.40972803,670.58,669.17,0.27420382]
[1737932664439,2.40972803,670.58,669.18,0.27420382]
[1737932664634,2.40972803,670.57,669.19,0.27420382]
[1737932664835,2.40972803,670.57,669.2,0.27420382]
[1737932665034,2.40972803,670.57,669.21,0.27420382]
[1737932665241,2.40972803,670.56,669.22,0.27422378]
[1737932665436,2.40972803,670.56,669.09,0.29891344]
[1737932665838,2.40972803,670.56,669.1,0.27421908]
[1737932666136,2.40972803,670.55,669.11,0.27421908]
[1737932666439,2.40972803,670.55,669.12,0.27421908]
[1737932666735,0.29821369,670.66,669.13,0.27421908]
[1737932666736,2.40972803,670.54,669.13,0.27421908]
[1737932666939,2.40972803,670.54,669.14,0.27421908]
[1737932667139,2.40972803,670.53,669.15,0.27421908]
[1737932667340,2.40972803,670.53,669.16,0.27421908]
[1737932667540,2.40972803,670.53,669.17,0.27421908]
[1737932667740,2.40972803,670.52,669.18,0.27421908]
[1737932667935,1.48290956,670.51,669.19,0.27421908]
[1737932668142,2.40972803,670.51,669.2,0.27421908]
[1737932668338,2.40972803,670.51,669.21,0.27421908]
[1737932668541,2.40972803,670.5,669.22,0.27421908]
[1737932668841,2.40972803,670.5,669.23,0.27421908]
[1737932669142,2.40972803,670.5,669.24,0.27421908]
[1737932669339,2.40972803,670.5,669.25,0.27421908]
[1737932669637,2.40972803,670.49,669.26,0.27421908]
[1737932669841,2.40972803,670.49,669.27,0.27421908]
[1737932670041,2.40972803,670.48,669.28,0.27421908]
[1737932670241,2.40972803,670.48,669.29,0.27421908]
[1737932670442,2.40972803,670.48,669.3,0.27421908]
[1737932670638,2.40972803,670.47,669.31,0.27421908]
[1737932670942,2.40972803,670.47,669.32,0.27421908]
[1737932671139,2.40972803,670.47,669.09,0.29891344]
[1737932671343,2.40972803,670.46,669.1,0.2741912]
[1737932671542,2.40972803,670.46,669.09,0.29891344]
[1737932671543,2.40972803,670.46,669.11,0.2741912]
[1737932671743,2.40972803,670.46,669.12,0.2741912]
[1737932671944,2.40972803,670.45,669.1,0.2741912]
[1737932672140,2.40972803,670.45,669.11,0.2741912]
[1737932672339,2.40972803,670.44,669.1,0.2741912]
[1737932672643,2.40972803,670.44,669.11,0.2741912]
[1737932672839,2.40972803,670.43,669.1,0.2741912]
[1737932673046,2.40972803,670.43,669.11,0.2741912]
[1737932673347,2.40972803,670.43,669.12,0.2741912]
[1737932673546,0.29821369,670.66,669.1,0.2741912]
[1737932673547,2.40972803,670.42,669.1,0.2741912]
[1737932674347,2.40972803,670.41,669.1,0.2741912]
[1737932675046,2.40972803,670.4,669.1,0.2741912]
[1737932675645,2.40972803,670.39,669.11,0.2741912]
[1737932675949,2.40972803,670.39,669.12,0.2741912]
[1737932676247,2.40972803,670.39,669.09,0.29891344]
[1737932676248,0.92681847,670.38,669.13,0.2741912]
[1737932676448,0.92681847,670.38,669.14,0.2741912]
[1737932676648,0.92681847,670.37,669.15,0.2741912]
[1737932676849,0.92681847,670.37,669.16,0.2741912]
[1737932677044,0.92681847,670.37,669.17,0.2741912]
[1737932677247,0.92681847,670.37,669.18,0.2741912]
[1737932677445,2.40127351,670.36,669.19,0.2741912]
[1737932677644,2.40127351,670.36,669.2,0.2741912]
[1737932677849,2.40127351,670.36,669.21,0.2741912]
[1737932678044,2.40127351,670.35,669.22,0.2741912]
[1737932678250,2.40127351,670.35,669.23,0.2741912]
[1737932678551,2.40127351,670.35,669.24,0.27419541]
[1737932678750,2.40127351,670.35,669.25,0.27419541]
[1737932678951,2.40127351,670.35,669.26,0.27419541]
[1737932679251,0.92681847,670.34,669.27,0.27419541]
[1737932679451,0.92681847,670.34,669.28,0.27419541]
[1737932679651,0.92681847,670.34,669.29,0.27419541]
[1737932679852,0.92681847,670.34,669.3,0.27419541]
[1737932680047,0.92681847,670.33,669.1,0.27419541]
[1737932680354,0.92681847,670.33,669.11,0.27419541]
[1737932680551,0.92681847,670.32,669.12,0.27419541]
[1737932680752,0.92681847,670.32,669.13,0.27419541]
[1737932680951,0.92681847,670.32,669.14,0.27419541]
[1737932681152,2.40089749,670.31,669.15,0.27419541]
[1737932681352,2.40089749,670.31,669.09,0.29891344]
[1737932681353,2.40089749,670.31,669.16,0.27419541]
[1737932681551,2.40089749,670.31,669.17,0.27419541]
[1737932681751,2.40089749,670.31,669.18,0.27419541]
[1737932681948,2.40089749,670.3,669.19,0.27419541]
[1737932682252,2.40089749,670.29,669.2,0.27419541]
[1737932682452,2.40089749,670.29,669.21,0.27419541]
[1737932682652,2.40089749,670.29,669.22,0.27419541]
[1737932682851,2.40089749,670.28,669.23,0.27419541]
[1737932683048,2.40089749,670.28,669.24,0.27419541]
[1737932683350,2.40089749,670.28,669.1,0.27419541]
[1737932683653,0.29821369,670.66,669.09,0.29891344]
[1737932683654,2.40089749,670.27,669.11,0.27419541]
[1737932683850,2.40089749,670.27,669.09,0.29891344]
[1737932684053,2.40089749,670.26,669.1,0.27427275]
[1737932684256,2.40089749,670.26,669.11,0.27427275]
[1737932684457,2.40089749,670.26,669.12,0.27427275]
[1737932684659,2.40089749,670.25,669.13,0.27427275]
[1737932684858,2.40089749,670.25,669.14,0.27427275]
[1737932685055,2.69929806,670.24,669.1,0.27427275]
[1737932685259,2.69929806,670.24,669.11,0.27427275]
[1737932685456,2.40089749,670.23,669.1,0.27427275]
[1737932685656,2.40089749,670.23,669.11,0.27427275]
[1737932685852,2.40089749,670.22,669.09,0.29891344]
[1737932686157,2.69931141,670.21,669.1,0.2742636]
[1737932687058,0.92681847,670.2,669.1,0.2742636]
[1737932687259,0.92681847,670.2,669.11,0.2742636]
[1737932687459,0.92681847,670.2,669.09,0.29891344]
[1737932687460,0.92681847,670.2,669.12,0.2742636]
[1737932687659,2.401843,670.19,669.12,0.2742636]
[1737932687954,0.92681847,670.18,669.13,0.2742636]
[1737932688162,0.92681847,670.18,669.14,0.2742636]
[1737932688361,0.92681847,670.18,669.15,0.2742636]
[1737932688657,0.29841392,670.21,669.09,0.29891344]
[1737932688658,0.92681847,670.17,669.16,0.2742636]
[1737932688861,0.92681847,670.17,669.17,0.2742636]
[1737932689057,0.92681847,670.16,669.18,0.2742636]
[1737932689260,0.92681847,670.16,669.19,0.2742636]
[1737932689461,0.92681847,670.15,669.2,0.27425439]
[1737932689662,0.92681847,670.15,669.21,0.27425439]
[1737932689860,0.92681847,670.15,669.1,0.27425439]
[1737932690060,0.92681847,670.14,669.11,0.27425439]
[1737932690363,0.29841392,670.21,669.12,0.27425439]
[1737932690558,0.29841392,670.21,669.13,0.27425439]
[1737932690759,0.29841392,670.21,669.14,0.27425439]
[1737932690966,0.29841392,670.21,669.15,1.00246937]
[1737932691159,1.08678414,670.68,669.16,0.27425439]
[1737932691359,1.08678414,670.68,669.17,0.27425439]
[1737932691663,0.29820925,670.67,669.18,0.27425439]
[1737932691861,2.69910606,670.67,669.19,0.27425439]
[1737932692164,2.69910606,670.67,669.2,0.27425439]
[1737932692364,2.69910606,670.67,669.21,0.27425439]
[1737932692559,2.40089681,670.66,669.22,0.57310977]
[1737932692759,2.40089681,670.66,669.23,0.5731053]
[1737932692959,2.40089681,670.66,669.24,0.57310084]
[1737932693265,2.40089681,670.66,669.25,0.57296014]
[1737932693459,1.22163999,670.65,669.26,0.27411816]
[1737932693657,0.29822259,670.64,669.27,0.27411816]
[1737932693865,0.29822259,670.64,669.28,0.27411816]
[1737932694065,0.29822259,670.64,669.29,0.27411816]
[1737932694360,2.40089681,670.63,669.3,0.27411816]
[1737932694560,0.29823148,670.62,669.31,0.27411816]
[1737932694761,0.29823148,670.62,669.32,0.27411816]
[1737932694966,0.29823148,670.62,669.25,0.29884198]
[1737932694967,2.40089681,670.61,669.33,0.27411816]
[1737932695168,0.29824038,670.6,669.26,0.27411816]
[1737932695366,0.29824038,670.6,669.27,0.27411816]
[1737932695668,2.40089681,670.59,669.28,0.27411816]
[1737932695866,2.40089681,670.59,669.29,0.27411816]
[1737932696061,0.92342185,670.58,669.3,0.27411816]
[1737932696265,0.92342185,670.58,669.26,0.27411816]
[1737932696465,0.92342185,670.58,669.27,0.27411816]
[1737932696662,0.92342185,670.57,669.26,0.27411816]
[1737932696862,0.92342185,670.57,669.27,0.29883305]
[1737932697068,0.92342185,670.56,669.28,0.27411138]
[1737932697264,0.92342185,670.56,669.29,0.29882412]
[1737932697464,0.92342185,670.56,669.3,0.27411138]
[1737932698069,0.92342185,670.55,669.3,0.27411138]
[1737932698469,0.92342185,670.54,669.3,0.27411138]
[1737932699268,0.92342185,670.53,669.3,0.27411138]
[1737932699668,0.92342185,670.52,669.3,0.27411138]
[1737932700770,0.92342185,670.51,669.3,0.27411138]
[1737932700974,0.92342185,670.5,669.3,0.27411138]
[1737932701772,2.40089681,670.49,669.29,0.29882412]
[1737932701969,2.40089681,670.49,669.3,0.27416128]
[1737932702167,2.40089681,670.49,669.31,0.27416128]
[1737932702367,0.29829375,670.48,669.32,0.27416128]
[1737932702668,2.69919056,670.48,669.33,0.27416128]
[1737932702872,2.69919056,670.48,669.34,0.27416128]
[1737932703067,2.40089681,670.47,669.35,0.27416128]
[1737932703271,2.40089681,670.47,669.36,0.27416128]
[1737932703466,2.40089681,670.46,669.37,0.27416128]
[1737932703673,2.40089681,670.46,669.38,0.27416128]
[1737932703873,2.40089681,670.45,669.39,0.27416128]
[1737932704175,2.40089681,670.45,669.4,0.27416128]
[1737932704368,2.40089681,670.45,669.3,0.27416128]
[1737932704568,2.40089681,670.45,669.05,1.55826128]
[1737932704569,0.92342185,670.44,669.31,0.57297647]
[1737932704771,0.92342185,670.44,669.32,0.27416128]
[1737932705073,0.29829375,670.48,669.33,0.57296754]
[1737932705274,0.29829375,670.48,669.34,0.2988018]
[1737932705472,0.29829375,670.48,669.35,0.27406202]
[1737932705670,0.92933453,670.47,669.36,0.27406202]
[1737932705872,0.92933453,670.47,669.37,0.27406202]
[1737932706075,0.92933453,670.47,669.38,0.27406202]
[1737932706376,1.08678414,671.15,669.39,0.27406202]
[1737932706577,0.29800485,671.13,669.4,0.27406202]
[1737932706771,0.29800485,671.13,669.41,0.57283257]
[1737932706975,2.41585797,671.12,669.42,0.57282811]
[1737932707278,0.29801817,671.1,669.43,0.57279457]
[1737932707477,0.29801817,671.1,669.44,0.27403294]
[1737932707678,2.41585797,671.09,669.45,0.27403294]
[1737932707878,2.41585797,671.09,669.46,0.27403294]
[1737932708077,0.29802706,671.08,669.47,0.57277672]
[1737932708272,2.41585797,671.07,669.48,0.57277226]
[1737932708471,0.29803594,671.06,669.49,0.57276779]
[1737932708677,0.29803594,671.06,669.5,0.27403294]
[1737932708878,2.41585797,671.05,669.51,0.27403294]
[1737932709075,0.29804482,671.04,669.52,0.5727015]
[1737932709272,0.29804482,671.04,669.53,0.57269704]
[1737932709477,0.29804482,671.04,669.54,0.57269257]
[1737932709672,2.41585797,671.03,669.55,0.27398003]
[1737932709979,2.41585797,671.03,669.56,0.57268365]
[1737932710177,2.41585797,671.02,669.57,0.27398003]
[1737932710376,2.41585797,671.02,669.58,0.27398003]
[1737932710577,0.29805815,671.01,669.59,0.27398003]
[1737932710878,2.71391612,671.01,669.6,0.27398003]
[1737932711074,2.71391612,671.01,669.61,0.27398003]
[1737932711280,2.41585797,671.0,669.62,0.27398003]
[1737932711474,0.29806703,670.99,669.63,0.27398003]
[1737932711679,0.29806703,670.99,669.64,0.27398003]
[1737932711880,2.41585797,670.98,669.65,0.27398003]
[1737932712081,2.41585797,670.98,669.66,0.27398003]
[1737932712278,2.41585797,670.97,669.67,0.27398003]
[1737932712478,2.41585797,670.97,669.68,0.27398003]
[1737932712679,2.41585797,670.96,669.69,0.27398003]
[1737932712978,2.41585797,670.95,669.7,0.27398003]
[1737932713179,2.41585797,670.95,669.56,0.29870362]
[1737932713180,2.41585797,670.95,669.71,0.57261675]
[1737932713379,2.41585797,670.95,669.72,0.29863226]
[1737932713575,2.41585797,670.94,669.73,0.27398003]
[1737932713880,2.41585797,670.94,669.74,0.57260337]
[1737932714080,2.41585797,670.94,669.75,0.57259891]
[1737932714275,0.92917614,670.93,669.76,0.27398003]
[1737932714483,0.92917614,670.93,669.77,0.27398003]
[1737932714681,0.92917614,670.93,669.78,0.27398003]
[1737932714881,0.92917614,670.93,669.79,0.27398003]
[1737932715182,0.29806703,670.99,669.76,0.29861442]
[1737932715183,0.29806703,670.99,669.8,0.27398003]
[1737932715383,0.29806703,670.99,669.81,0.27398003]
[1737932715582,0.29806703,670.99,669.82,0.27398003]
[1737932715783,0.92652088,670.98,669.83,0.27398003]
[1737932715984,0.92652088,670.98,669.84,0.27398003]
[1737932716283,0.92652088,670.97,669.85,0.27398003]
[1737932716484,0.92652088,670.97,669.86,0.27398003]
[1737932716684,0.92652088,670.97,669.87,0.27398003]